fUST/lending_fUST_20250212
["ID","MTS","AMOUNT","RATE_DAILY","PERIOD"]
[352805354,1739332240832,-3330.12,0.00013663,2]
[352805355,1739332240842,-500.0,0.00013663,2]
[352805356,1739332240854,-685.29,0.00013663,2]
[352805357,1739332240868,-500.0,0.00013663,2]
[352805358,1739332240882,-500.0,0.00013663,2]
[352805359,1739332240896,-500.0,0.00013663,2]
[352805360,1739332240910,-500.0,0.00013663,2]
[352805361,1739332240921,-500.0,0.00013663,2]
[352805362,1739332240932,-500.0,0.00013663,2]
[352805363,1739332240946,-500.0,0.00013663,2]
[352805364,1739332240961,-500.0,0.00013663,2]
[352805365,1739332240974,-500.0,0.00013663,2]
[352805366,1739332240987,-500.0,0.00013663,2]
[352805367,1739332241001,-523.67543609,0.00013663,2]
[352805368,1739332241014,-500.0,0.00013663,2]
[352805369,1739332241027,-526.3897287,0.00013663,2]
[352805370,1739332241041,-782.89,0.00013663,2]
[352805371,1739332241054,-500.0,0.00013663,2]
[352805372,1739332241068,-500.0,0.00013663,2]
[352805373,1739332241081,-592.42039046,0.00013663,2]
[352805374,1739332241093,-539.6,0.00013663,2]
[352805375,1739332241105,-500.0,0.00013663,2]
[352805376,1739332241118,-6008.09,0.00013663,2]
[352805377,1739332241130,-504.09385091,0.00013663,2]
[352805378,1739332241143,-1033.39,0.00013663,2]
[352805379,1739332241156,-932.84,0.00013663,2]
[352805380,1739332241169,-465.27544063,0.00013663,2]
[352805381,1739332241183,-501.55974027,0.00013664,2]
[352805382,1739332241194,-500.0,0.00013664,2]
[352805383,1739332241206,-500.0,0.00013664,2]
[352805384,1739332241218,-500.0,0.00013664,2]
[352805385,1739332241231,-501.89961858,0.00013664,2]
[352805386,1739332241243,-347.53580468,0.00013664,2]
[352805387,1739332241256,-503.52852237,0.00013664,2]
[352805388,1739332241271,-503.88641825,0.00013664,2]
[352805389,1739332241284,-501.94285672,0.00013664,2]
[352805390,1739332241297,-307.7234173,0.00013664,2]
[352805391,1739332241311,-506.52232214,0.00013664,2]
[352805392,1739332241324,-500.0,0.00013664,2]
[352805393,1739332241338,-502.63645887,0.00013664,2]
[352805394,1739332241355,-501.23111099,0.00013664,2]
[352805395,1739332241369,-501.18882861,0.00013664,2]
[352805396,1739332241380,-335.6025772,0.00013664,2]
[352805397,1739332241391,-500.96815387,0.00013664,2]
[352805398,1739332241402,-311.96996259,0.00013664,2]
[352805399,1739332241412,-221.25258393,0.00013664,2]
[352805400,1739332241424,-508.57335502,0.00013664,2]
[352805401,1739332241436,-534.87201618,0.00013664,2]
[352805402,1739332241450,-500.0,0.00013664,2]
[352805403,1739332241466,-505.32547186,0.00013664,2]
[352805404,1739332241480,-500.0,0.00013664,2]
[352805405,1739332241491,-500.0,0.00013664,2]
[352805406,1739332241501,-500.0,0.00013664,2]
[352805407,1739332241513,-189.23252493,0.00013664,2]
[352805408,1739332241525,-548.0582008,0.00013666,2]
[352805409,1739332241537,-272.82476238,0.00013697,2]
[352805410,1739332241551,-500.0,0.00013698,14]
[352805411,1739332241563,-500.0,0.00013698,14]
[352805412,1739332241575,-1000.0,0.00013698,2]
[352805413,1739332241587,-1000.0,0.00013698,2]
[352805414,1739332241600,-500.0,0.00013698,2]
[352805415,1739332241612,-500.0,0.00013698,2]
[352805416,1739332241623,-350.423939,0.00013699,2]
[352805417,1739332241635,-500.0,0.00013699,2]
[352805418,1739332241647,-500.0,0.00013699,2]
[352805419,1739332241658,-500.0,0.00013699,2]
[352805420,1739332241669,-500.0,0.00013699,2]
[352805421,1739332241680,-500.0,0.00013699,2]
[352805422,1739332241692,-500.0,0.00013699,2]
[352805423,1739332241704,-335.60702229,0.00013699,2]
[352805424,1739332241715,-500.0,0.00013699,2]
[352805425,1739332241727,-500.0,0.00013699,2]
[352805426,1739332241738,-500.0,0.00013699,2]
[352805427,1739332241750,-500.0,0.00013699,2]
[352805428,1739332241763,-500.0,0.00013699,2]
[352805429,1739332241775,-500.0,0.00013699,2]
[352805430,1739332241786,-500.0,0.00013699,2]
[352805431,1739332241798,-500.0,0.00013699,2]
[352805432,1739332241810,-500.0,0.00013699,2]
[352805433,1739332241822,-500.0,0.00013699,2]
[352805434,1739332241833,-500.0,0.00013699,2]
[352805435,1739332241847,-500.0,0.00013699,2]
[352805436,1739332241858,-500.0,0.00013699,2]
[352805437,1739332241870,-500.0,0.00013699,2]
[352805438,1739332241882,-500.0,0.00013699,2]
[352805439,1739332241894,-500.0,0.00013699,2]
[352805440,1739332241905,-500.0,0.00013699,2]
[352805441,1739332241918,-500.0,0.00013699,2]
[352805442,1739332241930,-500.0,0.00013699,2]
[352805443,1739332241943,-500.0,0.00013699,2]
[352805444,1739332241959,-500.0,0.00013699,2]
[352805445,1739332241971,-500.0,0.00013699,2]
[352805446,1739332241982,-500.0,0.00013699,2]
[352805447,1739332241996,-500.0,0.00013699,2]
[352805448,1739332242008,-500.0,0.00013699,2]
[352805449,1739332242019,-500.0,0.00013699,2]
[352805450,1739332242031,-205.50422138,0.00013699,2]
[352805451,1739332242043,-500.0,0.00013699,2]
[352805452,1739332242055,-500.0,0.00013699,2]
[352805453,1739332242068,-500.0,0.00013699,2]
[352805454,1739332242080,-500.0,0.00013699,2]
[352805455,1739332242092,-500.0,0.00013699,2]
[352805456,1739332242104,-500.0,0.00013699,2]
[352805457,1739332242116,-500.0,0.00013699,2]
[352805458,1739332242128,-500.0,0.00013699,2]
[352805459,1739332242141,-500.0,0.00013699,2]
[352805460,1739332242153,-650.0,0.00013699,2]
[352805461,1739332242165,-155.8,0.00013799,2]
[352805462,1739332242313,-826.68,0.00013799,2]
[352805463,1739332242324,-500.0,0.00013799,2]
[352805464,1739332242334,-1055.84,0.00013799,2]
[352805465,1739332242346,-2477.36,0.00013799,2]
[352805466,1739332242356,-160.67942007,0.000138,2]
[352805467,1739332242366,-500.0,0.000138,2]
[352805468,1739332242375,-500.0,0.000138,2]
[352805469,1739332242385,-500.0,0.000138,2]
[352805470,1739332242394,-504.607933,0.000138,2]
[352805471,1739332242404,-500.0,0.000138,2]
[352805472,1739332242414,-507.00901843,0.000138,2]
[352805473,1739332242424,-500.0,0.000138,2]
[352805474,1739332242434,-167.92973331,0.000138,2]
[352805475,1739332242444,-500.0,0.000138,2]
[352805476,1739332242453,-500.0,0.000138,2]
[352805477,1739332242463,-503.97714917,0.000138,2]
[352805478,1739332242473,-970.75,0.000138,2]
[352805479,1739332242483,-1126.8,0.000138,2]
[352805480,1739332242493,-500.0,0.000138,2]
[352805481,1739332242504,-500.0,0.000138,2]
[352805482,1739332242514,-500.0,0.000138,2]
[352805483,1739332242523,-8885.57,0.000138,2]
[352805484,1739332242533,-500.0,0.000138,2]
[352805485,1739332242543,-500.0,0.000138,2]
[352805486,1739332242552,-500.0,0.000138,2]
[352805487,1739332242562,-546.11,0.000138,2]
[352805488,1739332242571,-3330.12,0.000138,2]
[352805489,1739332242581,-500.0,0.000138,2]
[352805490,1739332242593,-685.29,0.000138,2]
[352805491,1739332242603,-500.0,0.000138,2]
[352805492,1739332242612,-500.0,0.000138,2]
[352805493,1739332242622,-500.0,0.000138,2]
[352805494,1739332242631,-500.0,0.000138,2]
[352805495,1739332242641,-500.0,0.000138,2]
[352805496,1739332242651,-500.0,0.000138,2]
[352805497,1739332242661,-500.0,0.000138,2]
[352805498,1739332242671,-451.63186984,0.000138,2]
[352805499,1739332242681,-500.0,0.000138,2]
[352805500,1739332242692,-500.0,0.000138,2]
[352805501,1739332242702,-500.0,0.000138,2]
[352805502,1739332242712,-782.89,0.000138,2]
[352805503,1739332242722,-500.0,0.000138,2]
[352805504,1739332242732,-500.0,0.000138,2]
[352805505,1739332242742,-539.6,0.000138,2]
[352805506,1739332242753,-500.0,0.000138,2]
[352805507,1739332242763,-6008.09,0.000138,2]
[352805508,1739332242772,-1033.39,0.000138,2]
[352805509,1739332242783,-932.84,0.000138,2]
[352805510,1739332242793,-503.89302623,0.00013801,2]
[352805511,1739332242803,-500.0,0.00013801,2]
[352805512,1739332242812,-500.0,0.00013801,2]
[352805513,1739332242822,-554.7766461,0.00013801,2]
[352805514,1739332242831,-1000.0,0.00013801,2]
[352805515,1739332242841,-500.0,0.00013801,2]
[352805516,1739332242857,-501.96797484,0.00013801,2]
[352805517,1739332242867,-500.0,0.00013801,2]
[352805518,1739332242877,-500.0,0.00013803,14]
[352805519,1739332242888,-500.0,0.000139,2]
[352805520,1739332242898,-201.5,0.00013913,2]
[352805521,1739332242908,-500.0,0.00013917,2]
[352805522,1739332242918,-152.4557013,0.00013936,2]
[352805523,1739332242928,-500.0,0.00013936,2]
[352805524,1739332242938,-623.44746129,0.00013936,2]
[352805525,1739332242948,-826.68,0.00013936,2]
[352805526,1739332242961,-500.0,0.00013936,2]
[352805527,1739332242971,-1055.84,0.00013936,2]
[352805528,1739332242980,-2477.36,0.00013936,2]
[352805529,1739332242991,-504.10535091,0.00013937,2]
[352805530,1739332243000,-505.34928355,0.00013937,2]
[352805531,1739332243010,-500.0,0.00013937,2]
[352805532,1739332243020,-500.0,0.00013937,2]
[352805534,1739332243029,-522.7426382,0.00013937,2]
[352805535,1739332243040,-500.0,0.00013937,2]
[352805536,1739332243051,-500.0,0.00013937,2]
[352805537,1739332243060,-970.75,0.00013937,2]
[352805538,1739332243070,-1126.8,0.00013937,2]
[352805539,1739332243080,-444.6866276,0.00013937,2]
[352805540,1739332243090,-500.0,0.00013937,2]
[352805541,1739332243103,-500.0,0.00013937,2]
[352805542,1739332243112,-8885.57,0.00013937,2]
[352805543,1739332243122,-500.0,0.00013937,2]
[352805544,1739332243132,-500.0,0.00013937,2]
[352805545,1739332243142,-500.0,0.00013937,2]
[352805546,1739332243152,-546.11,0.00013937,2]
[352805547,1739332243162,-3330.12,0.00013937,2]
[352805548,1739332243172,-350.25997289,0.00013937,2]
[352805549,1739332243181,-685.29,0.00013937,2]
[352805551,1739332243191,-500.0,0.00013937,2]
[352805552,1739332243200,-500.0,0.00013937,2]
[352805553,1739332243210,-500.0,0.00013937,2]
[352805554,1739332243219,-500.0,0.00013937,2]
[352805555,1739332243229,-500.0,0.00013937,2]
[352805556,1739332243238,-500.0,0.00013937,2]
[352805557,1739332243247,-500.0,0.00013937,2]
[352805558,1739332243257,-500.0,0.00013937,2]
[352805559,1739332243267,-500.0,0.00013937,2]
[352805560,1739332243276,-500.0,0.00013937,2]
[352805561,1739332243286,-782.89,0.00013937,2]
[352805563,1739332243296,-500.0,0.00013937,2]
[352805564,1739332243306,-500.0,0.00013937,2]
[352805565,1739332243315,-539.6,0.00013937,2]
[352805566,1739332243324,-500.0,0.00013937,2]
[352805567,1739332243334,-6008.09,0.00013937,2]
[352805569,1739332243346,-1033.39,0.00013937,2]
[352805570,1739332243355,-932.84,0.00013937,2]
[352805571,1739332243365,-504.3205174,0.00013938,2]
[352805572,1739332243375,-500.0,0.00013938,2]
[352805573,1739332243385,-1000.0,0.00013938,2]
[352805574,1739332243394,-500.0,0.00013938,2]
[352805576,1739332243403,-500.0,0.00013938,2]
[352805577,1739332243413,-414.59453275,0.0001394,14]
[352805578,1739332243423,-501.65998518,0.00013999,2]
[352805579,1739332243432,-500.0,0.00014,7]
[352805580,1739332243441,-500.0,0.00014,7]
[352805581,1739332243451,-500.0,0.00014,7]
[352805582,1739332243460,-500.0,0.00014,7]
[352805583,1739332243469,-500.0,0.00014,7]
[352805584,1739332243478,-500.0,0.00014,7]
[352805585,1739332243488,-500.0,0.00014,7]
[352805586,1739332243497,-500.0,0.00014,7]
[352805587,1739332243506,-500.0,0.00014,7]
[352805588,1739332243515,-500.0,0.00014,7]
[352805589,1739332243525,-500.0,0.00014,7]
[352805590,1739332243534,-500.0,0.00014,7]
[352805591,1739332243544,-500.0,0.00014,7]
[352805592,1739332243553,-500.0,0.00014,7]
[352805593,1739332243562,-500.0,0.00014,7]
[352805594,1739332243573,-500.0,0.00014,7]
[352805595,1739332243583,-500.0,0.00014,7]
[352805596,1739332243592,-500.0,0.00014,7]
[352805597,1739332243602,-500.0,0.00014,7]
[352805598,1739332243612,-500.0,0.00014,7]
[352805599,1739332243622,-500.0,0.00014,7]
[352805600,1739332243632,-300.0,0.00014,4]
[352805601,1739332243642,-500.0,0.00014,7]
[352805602,1739332243652,-500.0,0.00014,7]
[352805603,1739332243662,-500.0,0.00014,7]
[352805604,1739332243671,-500.0,0.00014,7]
[352805605,1739332243681,-500.0,0.00014,7]
[352805606,1739332243691,-500.0,0.00014,7]
[352805607,1739332243700,-500.0,0.00014,7]
[352805608,1739332243710,-500.0,0.00014,7]
[352805609,1739332243719,-500.0,0.00014,7]
[352805610,1739332243728,-500.0,0.00014,7]
[352805611,1739332243738,-500.0,0.00014,7]
[352805612,1739332243747,-500.0,0.00014,7]
[352805613,1739332243756,-500.0,0.00014,7]
[352805614,1739332243767,-500.0,0.00014,7]
[352805615,1739332243778,-500.0,0.00014,7]
[352805616,1739332243789,-500.0,0.00014,7]
[352805617,1739332243800,-500.0,0.00014,7]
[352805619,1739332243809,-500.0,0.00014,7]
[352805620,1739332243818,-500.0,0.00014,7]
[352805621,1739332243828,-500.0,0.00014,7]
[352805622,1739332243838,-500.0,0.00014,7]
[352805623,1739332243850,-500.0,0.00014,7]
[352805624,1739332243860,-500.0,0.00014,7]
[352805625,1739332243869,-500.0,0.00014,7]
[352805626,1739332243879,-500.0,0.00014,7]
[352805627,1739332243888,-500.0,0.00014,7]
[352805628,1739332243899,-500.0,0.00014,7]
[352805629,1739332243909,-500.0,0.00014,7]
[352805630,1739332243919,-500.0,0.00014,7]
[352805631,1739332243929,-500.0,0.00014,7]
[352805632,1739332243939,-500.0,0.00014,7]
[352805633,1739332243950,-500.0,0.00014,7]
[352805634,1739332243964,-500.0,0.00014,7]
[352805635,1739332243973,-603.13,0.00014,7]
[352805636,1739332243986,-500.0,0.00014,7]
[352805637,1739332243997,-500.0,0.00014011,2]
[352805638,1739332244007,-378.53207376,0.00014017,2]
[352805639,1739332244017,-514.228614,0.00014017,2]
[352805640,1739332244027,-500.0,0.00014017,2]
[352805641,1739332244039,-826.68,0.00014073,2]
[352805642,1739332244049,-500.0,0.00014073,2]
[352805643,1739332244059,-1055.84,0.00014073,2]
[352805644,1739332244070,-2477.36,0.00014073,2]
[352805645,1739332244081,-500.0,0.00014074,2]
[352805646,1739332244092,-500.0,0.00014074,2]
[352805647,1739332244101,-500.0,0.00014074,2]
[352805648,1739332244111,-500.0,0.00014074,2]
[352805649,1739332244121,-970.75,0.00014074,2]
[352805650,1739332244132,-1126.8,0.00014074,2]
[352805651,1739332244143,-500.0,0.00014074,2]
[352805652,1739332244153,-500.0,0.00014074,2]
[352805653,1739332244163,-8885.57,0.00014074,2]
[352805654,1739332244172,-500.0,0.00014074,2]
[352805655,1739332244182,-500.0,0.00014074,2]
[352805656,1739332244192,-500.0,0.00014074,2]
[352805657,1739332244202,-546.11,0.00014074,2]
[352805658,1739332244212,-3330.12,0.00014074,2]
[352805659,1739332244222,-685.29,0.00014074,2]
[352805660,1739332244232,-500.0,0.00014074,2]
[352805661,1739332244241,-500.0,0.00014074,2]
[352805662,1739332244251,-500.0,0.00014074,2]
[352805663,1739332244261,-500.0,0.00014074,2]
[352805664,1739332244271,-500.0,0.00014074,2]
[352805665,1739332244280,-500.0,0.00014074,2]
[352805666,1739332244290,-500.0,0.00014074,2]
[352805667,1739332244300,-500.0,0.00014074,2]
[352805668,1739332244309,-238.20614346,0.00014074,2]
[352805669,1739332244318,-500.0,0.00014074,2]
[352805670,1739332244328,-782.89,0.00014074,2]
[352805671,1739332244337,-500.0,0.00014074,2]
[352805672,1739332244353,-500.0,0.00014074,2]
[352805673,1739332244362,-539.6,0.00014074,2]
[352805674,1739332244372,-500.0,0.00014074,2]
[352805675,1739332244382,-6008.09,0.00014074,2]
[352805676,1739332244392,-1033.39,0.00014074,2]
[352805677,1739332244402,-932.84,0.00014074,2]
[352805678,1739332244411,-500.0,0.00014075,2]
[352805679,1739332244421,-1000.0,0.00014075,2]
[352805680,1739332244430,-500.0,0.00014075,2]
[352805681,1739332244440,-500.0,0.00014075,2]
[352805682,1739332244449,-548.58087942,0.00014096,2]
[352805683,1739332244459,-500.0,0.00014103,2]
[352805684,1739332244469,-501.64315851,0.00014121,2]
[352805685,1739332244479,-826.68,0.0001421,2]
[352805686,1739332244490,-500.0,0.0001421,2]
[352805687,1739332244499,-1055.84,0.0001421,2]
[352805688,1739332244509,-2477.36,0.0001421,2]
[352805689,1739332244519,-338.91807468,0.00014211,2]
[352805690,1739332244528,-500.0,0.00014211,2]
[352805691,1739332244538,-500.0,0.00014211,2]
[352805692,1739332244547,-500.0,0.00014211,2]
[352805693,1739332244556,-970.75,0.00014211,2]
[352805694,1739332244566,-1126.8,0.00014211,2]
[352805695,1739332244576,-500.0,0.00014211,2]
[352805696,1739332244585,-500.0,0.00014211,2]
[352805697,1739332244595,-8885.57,0.00014211,2]
[352805698,1739332244605,-500.0,0.00014211,2]
[352805699,1739332244615,-500.0,0.00014211,2]
[352805700,1739332244624,-500.0,0.00014211,2]
[352805701,1739332244634,-546.11,0.00014211,2]
[352805702,1739332244644,-3330.12,0.00014211,2]
[352805703,1739332244654,-685.29,0.00014211,2]
[352805704,1739332244663,-500.0,0.00014211,2]
[352805705,1739332244672,-433.25617481,0.00014211,2]
[352805706,1739332244682,-500.0,0.00014211,2]
[352805707,1739332244691,-500.0,0.00014211,2]
[352805708,1739332244701,-500.0,0.00014211,2]
[352805709,1739332244710,-500.0,0.00014211,2]
[352805710,1739332244720,-500.0,0.00014211,2]
[352805711,1739332244730,-500.0,0.00014211,2]
[352805712,1739332244739,-500.0,0.00014211,2]
[352805713,1739332244748,-782.89,0.00014211,2]
[352805714,1739332244758,-500.0,0.00014211,2]
[352805715,1739332244767,-183.84667495,0.00014211,2]
[352805716,1739332244776,-539.6,0.00014211,2]
[352805717,1739332244786,-408.61,0.00014211,2]
[352805718,1739332244795,-6008.09,0.00014211,2]
[352805719,1739332244805,-1033.39,0.00014211,2]
[352805720,1739332244814,-932.84,0.00014211,2]
[352805721,1739332244823,-500.0,0.00014212,2]
[352805722,1739332244932,-1000.0,0.00014212,2]
[352805723,1739332244964,-559.93495631,0.00014212,2]
[352805724,1739332244974,-500.0,0.00014212,2]
[352805725,1739332244984,-500.0,0.00014224,2]
[352805726,1739332244994,-826.68,0.00014347,2]
[352805727,1739332245003,-500.0,0.00014347,2]
[352805728,1739332245013,-1055.84,0.00014347,2]
[352805729,1739332245022,-2477.36,0.00014347,2]
[352805730,1739332245032,-500.0,0.00014348,2]
[352805731,1739332245042,-500.0,0.00014348,2]
[352805732,1739332245051,-500.0,0.00014348,2]
[352805733,1739332245060,-970.75,0.00014348,2]
[352805734,1739332245070,-1126.8,0.00014348,2]
[352805735,1739332245080,-500.0,0.00014348,2]
[352805736,1739332245089,-500.0,0.00014348,2]
[352805737,1739332245100,-8885.57,0.00014348,2]
[352805738,1739332245110,-190.84941649,0.00014348,2]
[352805739,1739332245119,-500.0,0.00014348,2]
[352805740,1739332245129,-500.0,0.00014348,2]
[352805741,1739332245139,-546.11,0.00014348,2]
[352805742,1739332245148,-3330.12,0.00014348,2]
[352805743,1739332245158,-685.29,0.00014348,2]
[352805744,1739332245168,-500.0,0.00014348,2]
[352805745,1739332245178,-500.0,0.00014348,2]
[352805746,1739332245187,-151.0,0.00014348,2]
[352805747,1739332245197,-500.0,0.00014348,2]
[352805748,1739332245207,-151.492578,0.00014348,2]
[352805749,1739332245216,-151.0,0.00014348,2]
[352805750,1739332245226,-500.0,0.00014348,2]
[352805751,1739332245235,-151.0,0.00014348,2]
[352805752,1739332245245,-500.0,0.00014348,2]
[352805753,1739332245255,-151.0,0.00014348,2]
[352805754,1739332245264,-151.0,0.00014348,2]
[352805755,1739332245274,-500.0,0.00014348,2]
[352805756,1739332245284,-500.0,0.00014348,2]
[352805757,1739332245294,-500.0,0.00014348,2]
[352805758,1739332245304,-151.0,0.00014348,2]
[352805759,1739332245314,-782.89,0.00014348,2]
[352805760,1739332245323,-528.22492169,0.00014348,2]
[352805761,1739332245333,-539.6,0.00014348,2]
[352805762,1739332245344,-6008.09,0.00014348,2]
[352805763,1739332245355,-1033.39,0.00014348,2]
[352805764,1739332245365,-932.84,0.00014348,2]
[352805765,1739332245375,-151.0,0.00014348,2]
[352805766,1739332245384,-296.75710932,0.00014349,2]
[352805767,1739332245393,-1000.0,0.00014349,2]
[352805768,1739332245403,-500.0,0.00014349,2]
[352805769,1739332245413,-157.129204,0.00014349,2]
[352805770,1739332245422,-334.95,0.00014349,2]
[352805771,1739332245431,-334.95,0.00014349,2]
[352805772,1739332245441,-1000.0,0.00014448,2]
[352805773,1739332245456,-1000.0,0.00014465,2]
[352805774,1739332245465,-826.68,0.00014484,2]
[352805775,1739332245475,-500.0,0.00014484,2]
[352805776,1739332245484,-1055.84,0.00014484,2]
[352805777,1739332245494,-2477.36,0.00014484,2]
[352805778,1739332245504,-500.0,0.00014485,2]
[352805779,1739332245513,-500.0,0.00014485,2]
[352805780,1739332245523,-970.75,0.00014485,2]
[352805781,1739332245533,-1126.8,0.00014485,2]
[352805782,1739332245543,-500.0,0.00014485,2]
[352805783,1739332245553,-500.0,0.00014485,2]
[352805784,1739332245562,-8885.57,0.00014485,2]
[352805785,1739332245572,-500.0,0.00014485,2]
[352805786,1739332245582,-500.0,0.00014485,2]
[352805787,1739332245591,-546.11,0.00014485,2]
[352805788,1739332245603,-3330.12,0.00014485,2]
[352805789,1739332245612,-685.29,0.00014485,2]
[352805790,1739332245622,-500.0,0.00014485,2]
[352805791,1739332245632,-500.0,0.00014485,2]
[352805792,1739332245641,-500.0,0.00014485,2]
[352805793,1739332245652,-500.0,0.00014485,2]
[352805794,1739332245661,-500.0,0.00014485,2]
[352805795,1739332245670,-500.0,0.00014485,2]
[352805796,1739332245680,-500.0,0.00014485,2]
[352805797,1739332245689,-500.0,0.00014485,2]
[352805798,1739332245698,-782.89,0.00014485,2]
[352805799,1739332245707,-539.6,0.00014485,2]
[352805800,1739332245717,-6008.09,0.00014485,2]
[352805801,1739332245726,-1033.39,0.00014485,2]
[352805802,1739332245736,-932.84,0.00014485,2]
[352805803,1739332245746,-500.0,0.00014486,2]
[352805804,1739332245756,-151.596619,0.00014486,2]
[352805805,1739332245765,-152.465611,0.00014486,2]
[352805806,1739332245775,-151.0,0.00014486,2]
[352805807,1739332245784,-181.60625839,0.00014522,2]
[352805808,1739332245794,-8395.83962051,0.00014559,2]
[352805809,1739332245804,-503.89903043,0.00014559,2]
[352805810,1739332245813,-1000.0,0.00014565,2]
[352805811,1739332245823,-826.68,0.00014621,2]
[352805812,1739332245833,-500.0,0.00014621,2]
[352805813,1739332245842,-1055.84,0.00014621,2]
[352805814,1739332245856,-2477.36,0.00014621,2]
[352805815,1739332245866,-500.0,0.00014622,2]
[352805816,1739332245876,-160.0,0.00014622,2]
[352805817,1739332245885,-185.18689,0.00014622,2]
[352805818,1739332245895,-185.18689,0.00014622,2]
[352805820,1739332245905,-970.75,0.00014622,2]
[352805821,1739332245914,-1126.8,0.00014622,2]
[352805822,1739332245925,-500.0,0.00014622,2]
[352805823,1739332245934,-500.0,0.00014622,2]
[352805824,1739332245944,-8885.57,0.00014622,2]
[352805825,1739332245958,-500.0,0.00014622,2]
[352805826,1739332245968,-500.0,0.00014622,2]
[352805827,1739332245976,-546.11,0.00014622,2]
[352805828,1739332245986,-3330.12,0.00014622,2]
[352805829,1739332245996,-685.29,0.00014622,2]
[352805830,1739332246006,-500.0,0.00014622,2]
[352805831,1739332246015,-500.0,0.00014622,2]
[352805832,1739332246024,-500.0,0.00014622,2]
[352805833,1739332246034,-500.0,0.00014622,2]
[352805834,1739332246045,-500.0,0.00014622,2]
[352805835,1739332246055,-500.0,0.00014622,2]
[352805836,1739332246065,-500.0,0.00014622,2]
[352805837,1739332246075,-500.0,0.00014622,2]
[352805838,1739332246086,-782.89,0.00014622,2]
[352805839,1739332246098,-539.6,0.00014622,2]
[352805840,1739332246108,-6008.09,0.00014622,2]
[352805841,1739332246118,-1033.39,0.00014622,2]
[352805842,1739332246128,-932.84,0.00014622,2]
[352805844,1739332246138,-152.37470391,0.00014623,2]
[352805845,1739332246148,-501.25242152,0.00014651,2]
[352805847,1739332246158,-826.68,0.00014758,2]
[352805848,1739332246169,-500.0,0.00014758,2]
[352805849,1739332246179,-1055.84,0.00014758,2]
[352805850,1739332246189,-2477.36,0.00014758,2]
[352805851,1739332246199,-230.42079951,0.00014759,2]
[352805852,1739332246208,-500.0,0.00014759,2]
[352805853,1739332246218,-970.75,0.00014759,2]
[352805854,1739332246228,-1126.8,0.00014759,2]
[352805855,1739332246239,-500.0,0.00014759,2]
[352805856,1739332246248,-500.0,0.00014759,2]
[352805857,1739332246258,-8885.57,0.00014759,2]
[352805858,1739332246269,-500.0,0.00014759,2]
[352805859,1739332246279,-500.0,0.00014759,2]
[352805860,1739332246288,-546.11,0.00014759,2]
[352805861,1739332246298,-3330.12,0.00014759,2]
[352805863,1739332246308,-685.29,0.00014759,2]